bitfinex/quotes_ETHUSD_20240817
["timestamp","ask_amount","ask_price","bid_price","bid_amount"]
[1723902896289,3.6364,2608.8,2608.5,4.20884103]
[1723902896523,3.6364,2608.8,2608.5,2.87518]
[1723902897080,3.6364,2608.8,2608.6,2.875]
[1723902897596,2.87447,2609.2,2608.5,2.87518]
[1723902897597,3.6364,2609.0,2608.7,2.87498]
[1723902898008,3.6364,2609.0,2608.7,5.74988]
[1723902898184,3.6364,2609.0,2608.8,2.87482]
[1723902900122,1.323,2609.0,2608.8,2.87482]
[1723902903546,2.3134,2609.2,2608.8,2.87482]
[1723902903547,2.3134,2609.2,2609.0,2.87465]
[1723902903751,2.3134,2609.2,2608.9,2.87467]
[1723902904052,2.3134,2609.2,2609.1,2.87455]
[1723902904188,2.3134,2609.2,2608.9,5.74934]
[1723902904397,2.3134,2609.2,2608.9,2.87467]
[1723902904795,1.323,2609.1,2608.9,2.87467]
[1723902907731,2.3134,2609.0,2608.8,2.87488]
[1723902908027,1.323,2608.9,2608.6,2.875]
[1723902908604,1.323,2608.9,2608.7,2.87498]
[1723902909404,1.323,2608.9,2608.7,5.74991]
[1723902910824,1.323,2608.9,2608.7,2.87493]
[1723902913528,1.323,2608.9,2608.5,2.87514]
[1723902913729,2.3134,2608.6,2608.2,0.79963133]
[1723902913932,2.3134,2608.6,2608.3,1.33374297]
[1723902914122,2.3134,2608.6,2608.1,3.67522133]
[1723902914298,2.3134,2608.6,2608.2,3.33436103]
[1723902914649,2.3134,2608.6,2608.3,1.33374441]
[1723902914798,2.3134,2608.6,2608.1,3.67522133]
[1723902914990,2.3134,2608.6,2608.3,2.87543]
[1723902920849,1.323,2608.7,2608.2,2.87552]
[1723902920850,1.323,2608.5,2608.2,2.87552]
[1723902921148,0.36364,2608.9,2607.8,3.67552133]
[1723902921149,2.2971,2608.1,2607.8,3.67552133]
[1723902921446,2.2971,2607.9,2607.5,2.66784029]
[1723902921629,1.323,2607.7,2607.5,2.8763]
[1723902921833,3.6201,2607.9,2607.5,2.8763]
[1723902924208,4.557254,2607.9,2607.5,2.8763]
[1723902925742,2.2971,2607.8,2607.4,2.87636]
[1723902926715,1.323,2607.7,2607.4,2.87636]
[1723902928024,2.2971,2607.6,2607.4,2.87636]
[1723902928249,2.2971,2607.6,2607.4,2.87635]
[1723902928435,2.2971,2607.6,2607.5,2.87631]
[1723902929260,2.2971,2607.8,2607.5,2.87631]
[1723902929414,2.2971,2607.8,2607.3,2.87645]
[1723902929624,2.2971,2607.8,2607.7,2.87609]
[1723902931228,2.2971,2608.1,2607.8,2.87594]
[1723902931439,2.2971,2608.1,2607.8,2.87592]
[1723902932328,2.2971,2608.1,2607.8,5.75184]
[1723902932638,2.2971,2608.1,2607.8,2.87592]
[1723902932844,2.65911,2608.1,2607.8,2.87592]
[1723902933662,2.65911,2608.1,2607.8,5.75184]
[1723902933864,2.65911,2608.1,2607.8,2.87592]
[1723902934163,2.65911,2608.1,2607.8,5.75184]
[1723902934862,2.65911,2608.1,2607.8,2.87592]
[1723902935668,1.323,2608.0,2607.8,2.87592]
[1723902936579,2.3567,2607.9,2607.8,2.87592]
[1723902936749,2.3567,2607.9,2607.6,2.87613]
[1723902937475,3.23767,2608.1,2607.6,2.87613]
[1723902937476,1.323,2607.8,2607.6,2.87613]
[1723902937629,1.323,2607.8,2607.4,5.87638]
[1723902937630,2.3567,2607.7,2607.5,2.87629]
[1723902938375,2.3567,2607.7,2607.6,2.8762]
[1723902938674,2.3567,2607.9,2607.6,2.8762]
[1723902940973,2.3567,2607.9,2607.6,2.87614]
[1723902945585,2.3567,2607.9,2607.6,5.75229]
[1723902945959,2.3567,2607.9,2607.7,2.87602]
[1723902948977,2.3567,2607.9,2607.6,2.87614]
[1723902949997,1.323,2607.8,2607.4,5.87635]
[1723902950194,2.3567,2607.7,2607.4,5.87635]
[1723902950545,2.3567,2607.5,2607.2,2.87654]
[1723902950746,1.323,2607.4,2607.2,2.87654]
[1723902954698,2.3567,2607.3,2607.0,2.87678]
[1723902955214,2.3567,2607.3,2606.9,2.87697]
[1723902955373,2.3567,2607.3,2606.8,2.87705]
[1723902955712,2.3957,2607.2,2606.7,2.87712]
[1723902955921,2.3957,2607.2,2606.6,2.87727]
[1723902955922,1.323,2606.9,2606.6,2.87727]
[1723902956208,1.69487,2606.9,2606.6,2.87727]
[1723902957567,2.3957,2607.0,2606.7,2.87719]
[1723902957798,1.323,2607.1,2606.7,2.87717]
[1723902957799,2.3957,2607.1,2606.7,2.87717]
[1723902958568,2.3957,2607.1,2606.8,2.87698]
[1723902960365,2.3957,2607.1,2606.9,2.87696]
[1723902962770,2.3957,2607.1,2606.7,2.87711]
[1723902963105,3.7187,2607.1,2606.7,2.87711]
[1723902963408,2.3957,2607.0,2606.5,5.75469]
[1723902963611,2.3957,2607.0,2606.6,5.87729]
[1723902963781,2.3957,2607.0,2606.6,3.0]
[1723902964427,2.3957,2607.0,2606.8,2.87708]
[1723902965891,2.3957,2607.2,2606.8,2.87707]
[1723902966491,2.3957,2607.2,2607.0,2.87684]
[1723902971129,2.3957,2607.2,2606.8,2.87707]
[1723902971130,2.3957,2607.2,2606.8,2.87698]
[1723902971625,2.3957,2607.2,2606.9,2.87694]
[1723902972140,2.3957,2607.2,2607.0,2.87684]
[1723902972286,2.3957,2607.2,2607.0,5.75364]
[1723902972482,2.3957,2607.2,2607.1,2.87675]
[1723902973096,2.3957,2607.4,2607.3,2.87653]
[1723902973299,2.3957,2607.4,2607.2,2.87663]
[1723902974802,2.3957,2607.7,2607.2,2.87663]
[1723902975293,2.6710292,2607.7,2607.2,2.87663]
[1723902975491,2.6710292,2607.7,2607.2,2.87658]
[1723902975707,2.6710292,2607.7,2607.2,5.75317]
[1723902975906,3.9940292,2607.7,2607.2,5.75316]
[1723902977116,0.68700192,2607.6,2607.2,5.75316]
[1723902978015,2.2843,2607.9,2607.6,2.87619]
[1723902978302,2.2843,2607.9,2607.5,2.8763]
[1723902978536,0.36073,2607.8,2607.5,2.8763]
[1723902978690,1.68373,2607.8,2607.5,2.8763]
[1723902981020,2.2843,2607.5,2607.2,2.87657]
[1723902981231,2.2843,2607.5,2607.3,2.87652]
[1723902989746,2.2843,2607.5,2607.1,5.7534]
[1723902990330,2.2843,2607.5,2607.2,2.87662]
[1723902992065,2.2843,2607.5,2607.3,2.87651]
[1723902992224,2.2843,2607.5,2607.3,5.75298]
[1723902993068,2.2843,2607.5,2607.3,5.75294]
[1723902993274,2.2843,2607.5,2607.3,2.87647]
[1723902994931,2.2843,2607.5,2607.3,5.75294]
[1723902995133,2.2843,2607.5,2607.3,2.87647]
[1723902996028,2.3241,2607.7,2607.3,2.87647]
[1723902996258,2.3241,2607.7,2607.4,2.87641]
[1723902998026,2.3241,2607.7,2607.3,5.75294]
[1723902998631,2.3241,2607.7,2607.3,2.87647]
[1723902999373,1.323,2608.0,2607.1,3.32443143]
[1723902999574,2.3241,2608.1,2607.7,2.87603]
[1723902999731,2.3241,2608.1,2607.9,2.87586]
[1723903000094,2.3241,2608.1,2608.0,2.87576]
[1723903000232,2.3241,2608.3,2608.1,2.87558]
[1723903000434,0.23241,2608.2,2608.1,2.87558]
[1723903000669,2.3241,2608.3,2608.1,2.87558]
[1723903000869,2.3241,2608.3,2608.0,2.87576]
[1723903001227,2.3241,2608.3,2608.0,2.87571]
[1723903001432,2.3241,2608.3,2608.0,5.75141]
[1723903002851,2.3241,2608.3,2608.0,2.8757]
[1723903003434,2.3241,2608.3,2608.0,2.87569]
[1723903003690,2.3241,2608.3,2608.0,5.75139]
[1723903003849,2.3241,2608.3,2608.0,2.87569]
[1723903004388,2.3241,2608.3,2608.0,5.75139]
[1723903004551,2.3241,2608.3,2608.0,2.87569]
[1723903004734,3.6471,2608.5,2608.0,2.87569]
[1723903004938,3.6471,2608.5,2608.1,2.87559]
[1723903005582,3.6471,2608.5,2608.0,5.75139]
[1723903005732,3.6471,2608.5,2608.0,2.87569]
[1723903006479,3.6471,2608.5,2608.0,5.75139]
[1723903007079,3.6471,2608.5,2608.1,2.87563]
[1723903007716,3.6471,2608.5,2608.0,2.87569]
[1723903010264,0.939742,2608.4,2608.0,2.87569]
[1723903011109,2.3118,2608.2,2608.0,2.87569]
[1723903014597,1.323,2608.3,2608.0,2.87569]
[1723903014905,3.251542,2608.4,2608.0,2.87569]
[1723903014906,2.3118,2608.4,2608.0,2.87569]
[1723903015070,2.3118,2608.4,2608.0,5.75139]
[1723903015671,2.3118,2608.4,2608.0,2.87569]
[1723903018608,2.962796,2608.4,2608.0,2.87569]
[1723903019016,1.323,2608.3,2607.8,2.87588]
[1723903019513,2.4792,2608.2,2607.7,2.87599]
[1723903019715,1.323,2608.1,2607.7,2.87599]
[1723903020115,5.7833296,2608.2,2607.7,2.87599]
[1723903020316,5.35475,2608.2,2607.7,2.87599]
[1723903020490,2.4792,2608.2,2607.8,2.87597]
[1723903023485,2.4792,2608.2,2607.9,2.87579]
[1723903036427,2.4792,2608.2,2607.7,2.87605]
[1723903036428,2.3064,2608.1,2607.7,2.87605]
[1723903036639,2.3064,2608.1,2607.5,1.323]
[1723903036854,2.3064,2608.1,2607.9,2.8758]
[1723903037114,2.3064,2608.1,2608.0,2.87576]
[1723903039436,2.3064,2608.1,2607.8,5.75182]
[1723903039639,2.3064,2608.1,2607.8,2.8759]
[1723903040913,2.3064,2608.1,2607.8,5.7518]
[1723903041113,2.3064,2608.1,2607.8,2.8759]
[1723903041319,2.66934,2608.1,2607.8,2.8759]
[1723903043254,2.3064,2608.1,2607.8,2.8759]
[1723903051938,2.3765,2608.3,2607.7,2.2838]
[1723903052144,2.3765,2608.3,2607.8,3.33500716]
[1723903052366,2.3765,2608.3,2607.9,1.33404668]
[1723903052685,2.3765,2608.3,2608.2,2.87554]
[1723903052897,2.3765,2608.6,2608.4,2.87532]
[1723903053036,2.796291,2608.6,2608.4,2.87532]
[1723903054272,2.796291,2608.6,2608.2,2.87543]
[1723903054569,2.3765,2608.6,2608.2,2.87543]
[1723903058092,2.4427,2608.4,2608.0,2.8757]
[1723903060206,2.4427,2608.0,2607.7,2.87609]
[1723903063087,2.4427,2608.2,2607.9,2.87587]
[1723903063421,2.4427,2608.2,2607.9,2.87581]
[1723903063565,2.87527,2608.5,2607.9,5.75162]
[1723903063767,2.4427,2608.4,2607.9,5.75162]
[1723903064111,2.4427,2608.3,2607.9,2.87581]
[1723903064316,3.1643002,2608.3,2607.9,2.87581]
[1723903064495,2.4427,2608.3,2608.0,2.87575]
[1723903064696,2.4427,2608.3,2608.1,2.87565]
[1723903067233,2.4427,2608.3,2608.1,2.87559]
[1723903068211,2.4427,2608.3,2607.9,5.75162]
[1723903068410,2.4427,2608.3,2608.0,2.8757]
[1723903071113,2.4427,2608.3,2608.1,2.87565]
[1723903072203,2.4427,2608.3,2608.1,2.87559]
[1723903079702,7.45,2608.7,2608.2,2.87554]
[1723903079903,2.4249,2608.9,2608.5,2.87521]
[1723903080117,27.22,2609.0,2608.8,2.87488]
[1723903080436,27.22,2609.0,2608.5,1.323]
[1723903080437,2.4249,2609.1,2608.9,2.87477]
[1723903080607,2.4249,2609.3,2608.9,2.87468]
[1723903081619,2.4249,2609.3,2608.7,2.87489]
[1723903082023,2.4249,2609.3,2608.9,2.87476]
[1723903083239,2.4249,2609.3,2609.0,2.87464]
[1723903084636,2.4249,2609.3,2609.1,2.87451]
[1723903084808,2.4249,2609.5,2609.2,2.87444]
[1723903085237,2.4249,2609.5,2609.3,2.87431]
[1723903086632,2.4249,2609.4,2608.9,2.8747]
[1723903086818,2.4249,2609.4,2608.9,5.74941]
[1723903087021,2.4249,2609.4,2608.7,2.87495]
[1723903087022,2.87451,2609.2,2608.7,2.87495]
[1723903087195,2.4249,2608.8,2608.5,2.87512]
[1723903087621,2.4249,2608.8,2608.6,2.8751]
[1723903087808,4.19761,2609.1,2608.7,2.87499]
[1723903087809,1.323,2609.1,2608.7,2.87499]
[1723903088008,2.4249,2609.0,2608.7,2.87499]
[1723903089403,2.4249,2609.0,2608.7,2.87493]
[1723903089799,2.4249,2609.0,2608.5,2.87515]
[1723903090135,2.4249,2609.0,2608.6,2.8751]
[1723903092237,2.4249,2609.0,2608.7,2.87491]
[1723903093116,2.4249,2609.0,2608.9,2.87477]
[1723903097145,2.4249,2609.0,2608.4,5.87528]
[1723903097146,2.3937,2608.9,2608.4,2.87528]
[1723903097349,2.3937,2608.9,2608.5,2.8752]
[1723903098433,2.3937,2608.9,2608.6,2.87503]
[1723903099943,2.3937,2608.9,2608.4,2.87524]
[1723903100128,2.3937,2608.9,2608.5,2.87513]
[1723903100369,2.3937,2608.9,2608.5,5.75027]
[1723903100532,2.3937,2608.9,2608.5,5.75028]
[1723903100740,2.3937,2608.9,2608.5,2.87513]
[1723903101344,2.3937,2608.9,2608.6,2.87508]
[1723903104346,2.3937,2608.9,2608.8,2.87488]
[1723903105153,2.3937,2608.9,2608.6,5.75008]
[1723903105454,2.3937,2608.9,2608.7,2.87497]
[1723903105658,2.63307,2608.9,2608.4,2.87527]
[1723903105964,3.1142,2608.9,2608.4,2.87527]
[1723903106160,2.3937,2608.8,2608.4,2.87527]
[1723903109328,2.3937,2608.8,2608.4,5.75051]
[1723903109728,2.3937,2608.8,2608.4,5.7505]
[1723903109958,2.3937,2608.8,2608.4,2.87525]
[1723903110129,2.3937,2608.8,2608.4,5.7505]
[1723903110749,2.37115933,2608.8,2608.4,5.7505]
[1723903111558,2.37115933,2608.8,2608.5,2.87519]
[1723903115175,2.37115933,2608.8,2608.6,2.87504]
[1723903115476,7.45,2609.1,2608.8,2.87478]
[1723903115677,7.45,2609.1,2609.0,2.87466]
[1723903117188,19.77,2609.3,2609.0,2.87466]
[1723903117802,19.77,2609.3,2609.1,2.87453]
[1723903118134,2.2881,2609.4,2609.1,2.87453]
[1723903118935,2.2881,2609.4,2609.3,2.87433]
[1723903119353,2.2881,2609.4,2609.1,2.87453]
[1723903119600,2.2881,2609.4,2609.0,2.87464]
[1723903127396,2.2881,2609.3,2608.9,2.87476]
[1723903127556,2.2881,2609.3,2608.8,2.87478]
[1723903128302,2.2881,2609.3,2608.8,5.74959]
[1723903128466,2.2881,2609.3,2608.9,2.87475]
[1723903129089,22.0581,2609.3,2608.9,2.87475]
[1723903129657,22.0581,2609.3,2609.0,2.87465]
[1723903129892,22.0581,2609.3,2609.0,2.8746]
[1723903130710,2.2881,2609.3,2609.0,2.8746]
[1723903131366,2.2881,2609.3,2609.2,2.87444]
[1723903132364,2.2881,2609.5,2609.4,2.87415]
[1723903132710,2.2881,2609.9,2609.4,2.87415]
[1723903133209,2.2881,2609.8,2609.4,2.87415]
[1723903135333,2.2881,2609.8,2609.3,2.87431]
[1723903135618,2.329,2609.7,2609.3,2.87431]
[1723903137495,2.329,2609.7,2609.3,5.74856]
[1723903139043,2.329,2609.7,2609.4,2.87422]
[1723903140111,2.329,2609.7,2609.3,2.87425]
[1723903140112,2.329,2609.7,2609.5,2.8741]
[1723903140307,2.329,2609.7,2609.5,5.74815]
[1723903140510,2.329,2609.7,2609.6,2.874]
[1723903141218,2.329,2610.0,2609.7,2.87388]
[1723903142622,2.329,2610.0,2609.7,2.87383]
[1723903143039,2.329,2610.0,2609.7,5.74764]
[1723903143373,2.329,2610.0,2609.7,2.87381]
[1723903143521,2.329,2610.0,2609.7,5.74764]
[1723903143929,2.329,2610.0,2609.7,5.74763]
[1723903145570,2.329,2610.0,2609.7,2.87381]
[1723903146123,2.329,2610.0,2609.5,2.874]
[1723903146365,2.329,2610.0,2609.7,2.87387]
[1723903147530,2.329,2610.0,2609.7,2.87383]
[1723903148764,2.329,2610.0,2609.7,5.74766]
[1723903149379,2.329,2610.0,2609.7,2.87383]
[1723903151778,2.329,2610.0,2609.5,5.74804]
[1723903151945,2.329,2610.0,2609.5,2.874]
[1723903152347,2.329,2610.0,2609.6,2.87393]
[1723903153447,2.329,2610.0,2609.7,2.87387]
[1723903154480,2.329,2610.0,2609.7,5.7477]
[1723903154682,2.329,2610.0,2609.7,2.87383]
[1723903154987,2.329,2610.0,2609.7,5.74766]
[1723903155168,2.329,2610.0,2609.7,2.87383]
[1723903156067,2.329,2610.0,2609.8,2.87377]
[1723903156901,2.329,2610.0,2609.7,2.87383]
[1723903157113,2.4918,2610.2,2609.9,2.87361]
[1723903157423,2.4918,2610.2,2609.9,5.74721]
[1723903158121,2.4918,2610.2,2610.0,2.87355]
[1723903158876,2.4918,2610.2,2610.1,2.87345]
[1723903159076,2.4918,2610.5,2610.1,2.87345]
[1723903160218,2.4918,2610.5,2610.0,2.87355]
[1723903160219,2.4918,2610.5,2610.0,5.74705]
[1723903160391,0.668771,2610.4,2610.0,5.74705]
[1723903160593,2.4918,2610.3,2610.0,5.74705]
[1723903161823,2.4918,2610.3,2610.0,2.8735]
[1723903162443,2.4918,2610.3,2610.0,5.74699]
[1723903164320,2.4918,2610.3,2610.1,2.87344]
[1723903167622,2.4918,2610.5,2610.2,2.87334]
[1723903168780,2.4918,2610.5,2610.0,2.87349]
[1723903168982,2.4918,2610.5,2610.0,2.87346]
[1723903169998,2.4918,2610.5,2610.1,2.87341]
[1723903178734,2.4918,2610.5,2610.0,2.87346]
[1723903178901,0.66877,2610.4,2610.0,2.87346]
[1723903179101,5.36481,2610.5,2610.0,2.87346]
[1723903179314,2.87301,2610.5,2610.0,2.87346]
[1723903179510,2.4562,2610.4,2610.0,2.87346]
[1723903179918,2.4562,2610.3,2610.0,2.87346]
[1723903181723,2.4562,2610.3,2610.0,5.74696]
[1723903183198,2.4562,2610.3,2610.0,5.74695]
[1723903183718,2.4562,2610.3,2610.0,2.87346]
[1723903184240,2.4562,2610.3,2610.0,5.74696]
[1723903184446,2.4562,2610.5,2610.1,2.87345]
[1723903184809,2.4562,2610.5,2610.0,5.74695]
[1723903184999,3.121405,2610.5,2610.0,5.74695]
[1723903185332,3.121405,2610.5,2610.0,2.87346]
[1723903185512,3.121405,2610.5,2610.0,5.74696]
[1723903185714,3.121405,2610.5,2610.0,2.87346]
[1723903186242,3.121405,2610.5,2610.0,5.74696]
[1723903186538,2.4562,2610.5,2610.1,2.87343]
[1723903188738,2.4562,2610.5,2610.0,2.87346]
[1723903188739,5.32922,2610.5,2610.0,2.87346]
[1723903190314,2.4562,2610.4,2610.0,2.87346]
[1723903192500,2.4562,2610.1,2609.6,6.54747133]
[1723903192702,2.4562,2610.1,2609.7,6.33240927]
[1723903192901,2.4562,2610.1,2609.7,3.0]
[1723903194162,2.8726,2610.9,2609.2,3.67399133]
[1723903194163,2.4562,2609.6,2609.2,3.67399133]
[1723903194325,2.4562,2609.6,2609.3,4.20752422]
[1723903194549,2.4562,2609.6,2609.3,2.87431]
[1723903199334,2.4562,2609.6,2609.4,2.8742]
[1723903199547,2.4562,2609.6,2609.4,5.7484]
[1723903200269,2.4562,2609.6,2609.4,2.87416]
[1723903200566,2.4562,2609.6,2609.4,2.87415]
[1723903200980,2.4562,2609.6,2609.5,2.87411]
[1723903201777,2.87341,2610.2,2609.5,2.87411]
[1723903201778,2.4233,2609.8,2609.5,2.87411]
[1723903202009,2.4233,2610.0,2609.5,2.87411]
[1723903202156,2.4233,2610.0,2609.7,2.87383]
[1723903202508,2.4233,2610.0,2609.7,5.74766]
[1723903202649,2.4233,2610.0,2609.9,2.87367]
[1723903202859,2.4233,2610.3,2609.9,5.74734]
[1723903203051,2.4233,2610.3,2609.9,2.87367]
[1723903203549,2.4233,2610.3,2610.0,2.87355]
[1723903203791,2.4233,2610.3,2610.1,2.87338]
[1723903203988,4.19575,2610.8,2610.1,2.87338]
[1723903204190,2.4233,2610.7,2610.1,2.87338]
[1723903204804,2.4233,2610.7,2610.3,2.87316]
[1723903205952,2.4233,2610.6,2610.3,2.87316]
[1723903207093,2.4233,2610.8,2610.7,2.87279]
[1723903207296,2.87191,2611.5,2610.7,4.19579]
[1723903207297,2.4233,2611.4,2610.7,4.19579]
[1723903207519,2.710491,2611.4,2610.9,2.87257]
[1723903209278,2.710491,2611.4,2610.7,5.74549]
[1723903209279,5.582511,2611.4,2610.7,5.74549]
[1723903209496,2.0135471,2611.3,2610.8,2.87268]
[1723903210270,1.323,2611.3,2610.8,2.87268]
[1723903210468,1.323,2611.3,2610.7,2.8727]
[1723903210469,2.4233,2611.2,2610.7,2.8727]
[1723903210782,5.2956,2611.2,2610.7,2.87277]
[1723903210956,1.323,2611.1,2610.7,2.87277]
[1723903211581,1.323,2611.1,2610.7,5.74554]
[1723903211777,1.323,2611.1,2610.8,2.87267]
[1723903211977,2.4233,2611.2,2610.8,2.87267]
[1723903213427,2.4233,2611.2,2610.7,2.87277]
[1723903213428,2.4233,2611.2,2610.9,2.87254]
[1723903213998,2.4233,2611.2,2610.9,2.8725]
[1723903214199,2.4233,2611.2,2611.0,2.87245]
[1723903214429,2.4233,2611.2,2610.9,2.8725]
[1723903215527,2.4233,2611.2,2610.7,5.74545]
[1723903215728,2.4233,2611.2,2610.8,2.87267]
[1723903215889,3.7463,2611.2,2610.8,2.87267]
[1723903216323,2.4233,2611.2,2610.8,2.87267]
[1723903216509,2.4233,2611.2,2610.9,2.87257]
[1723903226537,2.4233,2611.2,2610.5,2.87296]
[1723903226538,1.323,2611.1,2610.5,2.87296]
[1723903226745,2.2735,2611.0,2610.5,5.74589]
[1723903227422,2.2735,2611.0,2610.5,2.87294]
[1723903228354,2.2735,2611.0,2610.5,5.74589]
[1723903229254,2.2735,2611.0,2610.5,2.87294]
[1723903229839,2.2735,2611.0,2610.5,5.74589]
[1723903230758,2.87246,2611.0,2610.5,2.87294]
[1723903230978,2.2735,2610.9,2610.5,5.74588]
[1723903231120,2.2735,2610.9,2610.5,2.87294]
[1723903231454,2.2735,2610.9,2610.5,5.74588]
[1723903231820,2.2735,2610.9,2610.6,2.87287]
[1723903232283,2.2735,2610.9,2610.5,2.87294]
[1723903233249,2.2735,2610.9,2610.5,5.74588]
[1723903234011,2.2735,2610.9,2610.6,2.87288]
[1723903234577,2.2735,2610.9,2610.5,5.74589]
[1723903234780,2.2735,2610.9,2610.6,2.87288]
[1723903236360,2.2735,2610.9,2610.6,2.87284]
[1723903237882,2.2761,2610.8,2610.2,5.74656]
[1723903238201,2.2761,2610.7,2610.2,2.87328]
[1723903239064,2.2761,2610.7,2610.3,2.87322]
[1723903239562,2.2761,2610.7,2610.2,2.87328]
[1723903239751,2.2761,2610.7,2610.2,5.74654]
[1723903239951,2.2761,2610.7,2610.2,2.87327]
[1723903242999,2.2761,2610.7,2610.3,2.87323]
[1723903245362,2.2761,2610.7,2610.4,2.8731]
[1723903245985,2.2761,2610.7,2610.5,2.87297]
[1723903247158,2.2761,2610.7,2610.6,2.8729]
[1723903249699,2.2761,2611.0,2610.7,2.87273]
[1723903249860,2.2761,2611.0,2610.9,2.87257]
[1723903252555,2.87188,2611.6,2611.0,2.87243]
[1723903252556,2.2761,2611.2,2611.0,2.87243]
[1723903252837,2.2761,2611.2,2611.0,5.7448]
[1723903252996,2.2761,2611.2,2611.0,2.8724]
[1723903253422,2.2761,2611.4,2611.0,2.8724]
[1723903253642,2.2761,2611.4,2611.2,2.87222]
[1723903254847,2.2761,2611.4,2611.0,5.74475]
[1723903255145,2.2761,2611.4,2611.1,2.87232]
[1723903255650,2.4047,2611.7,2611.3,2.87213]
[1723903255827,3.7277,2611.7,2611.3,2.87213]
[1723903256022,4.961939,2611.7,2611.3,2.87213]
[1723903257261,2.4047,2611.7,2611.3,2.87213]
[1723903257461,2.4047,2611.9,2611.7,2.87163]
[1723903257665,2.4047,2612.1,2611.9,2.87146]
[1723903258389,2.4047,2612.1,2611.9,2.87143]
[1723903260351,2.4047,2612.1,2611.7,2.87159]
[1723903260650,3.7277,2612.1,2611.6,2.87177]
[1723903260967,2.4047,2612.3,2611.9,2.8714]
[1723903261316,2.4047,2612.3,2612.0,2.87133]
[1723903262348,3.7277,2612.6,2612.0,2.87129]
[1723903262572,4.014766,2612.6,2611.8,2.87151]
[1723903262739,2.4047,2612.3,2611.8,2.87151]
[1723903263142,2.4047,2612.3,2611.8,5.74303]
[1723903263770,2.4047,2612.3,2611.9,2.87147]
[1723903264143,2.87065,2612.7,2612.1,2.87123]
[1723903264345,5.27548,2612.6,2612.0,2.87133]
[1723903264579,2.87087,2612.5,2611.9,2.87137]
[1723903265279,2.4047,2612.6,2612.0,2.87129]
[1723903265575,5.2754,2612.6,2612.0,2.87129]
[1723903266970,2.87083,2612.5,2612.0,2.87129]
[1723903267195,4.19383,2612.5,2612.0,2.87129]
[1723903267361,2.2855,2612.4,2612.0,2.87129]
[1723903268157,2.27239744,2612.4,2612.0,2.87129]
[1723903269791,2.27239744,2612.4,2612.0,5.74258]
[1723903269965,2.27239744,2612.4,2612.1,2.87124]
[1723903270958,2.27239744,2612.4,2611.6,2.8717]
[1723903270959,1.323,2612.3,2611.6,2.8717]
[1723903271291,2.2855,2612.1,2611.6,5.74342]
[1723903271593,2.2855,2612.1,2611.6,2.8717]
[1723903272097,2.2855,2612.1,2611.6,5.74344]
[1723903272293,2.2855,2612.1,2611.6,2.8717]
[1723903272969,2.2855,2612.1,2611.7,2.87168]
[1723903273795,2.2855,2612.1,2611.6,2.8717]
[1723903274392,1.323,2611.8,2611.3,3.0]
[1723903274572,5.15728,2611.7,2611.1,2.87231]
[1723903274770,4.19481,2611.6,2611.1,2.87231]
[1723903274966,1.323,2611.6,2611.1,2.87231]
[1723903275170,2.3361,2611.4,2610.8,5.7452]
[1723903275379,2.3361,2611.4,2610.8,2.87258]
[1723903275581,3.6591,2611.6,2611.1,2.87228]
[1723903275781,2.3361,2611.6,2611.3,2.87212]
[1723903276305,1.323,2611.4,2610.9,2.8725]
[1723903276461,2.3361,2611.3,2610.9,2.8725]
[1723903277382,2.3361,2611.3,2610.9,5.745]
[1723903277769,2.3361,2611.3,2611.1,2.87228]
[1723903277996,2.87175,2611.7,2611.1,2.87228]
[1723903277997,2.3361,2611.6,2611.1,2.87228]
[1723903278863,5.20791,2611.6,2611.1,2.87228]
[1723903279062,2.3361,2611.6,2611.1,2.87228]
[1723903279267,2.3361,2611.6,2611.2,2.87223]
[1723903279516,4.19475,2611.7,2611.1,5.18748]
[1723903279517,5.20785,2611.7,2611.1,5.18748]
[1723903279678,5.20785,2611.7,2611.2,2.87221]
[1723903279877,2.3361,2611.7,2611.3,2.87206]
[1723903280264,2.3361,2611.7,2611.1,5.74453]
[1723903280506,2.3361,2611.7,2611.2,2.87222]
[1723903280710,2.87187,2611.6,2610.8,5.1878]
[1723903280958,2.87187,2611.6,2611.0,2.8724]
[1723903281094,2.87187,2611.6,2611.0,5.7448]
[1723903281423,2.87129,2612.1,2610.8,5.74521]
[1723903281424,2.87206,2611.4,2610.8,5.74521]
[1723903281625,3.144067,2611.5,2610.9,3.0]
[1723903281785,5.20808,2611.5,2610.9,5.8725]
[1723903282125,8.08006,2611.5,2610.9,5.8725]
[1723903282422,5.20808,2611.5,2610.9,5.8725]
[1723903282768,5.20808,2611.5,2610.6,2.87283]
[1723903282973,2.87224,2611.2,2610.7,3.0]
[1723903283206,2.87221,2611.3,2610.7,5.87277]
[1723903283583,2.87221,2611.3,2610.7,3.0]
[1723903283786,2.87224,2611.2,2610.7,3.0]
[1723903284876,2.87224,2611.2,2610.6,2.87283]
[1723903285094,2.87224,2611.2,2610.6,5.74567]
[1723903285289,2.87221,2611.3,2610.7,2.87278]
[1723903285290,2.8722,2611.3,2610.7,2.87278]
[1723903285574,2.8722,2611.3,2610.5,2.87299]
[1723903285575,2.495,2611.0,2610.5,2.87299]
[1723903287076,2.495,2611.0,2610.6,2.87287]
[1723903290241,2.495,2611.0,2610.6,5.74571]
[1723903290445,2.495,2611.0,2610.6,2.87284]